fUSD/lending_fUSD_20240616
["ID","MTS","AMOUNT","RATE_DAILY","PERIOD"]
[329653664,1718543486969,-649.48,0.00025202,3]
[329653665,1718543486983,-3520.91,0.00025202,3]
[329653666,1718543486995,-2428.49,0.00025202,3]
[329653667,1718543487008,-568.3,0.00025202,3]
[329653668,1718543487022,-422.92513986,0.00025202,3]
[329653669,1718543487036,-1046.44,0.00025202,3]
[329653670,1718543487051,-629.85,0.00025202,3]
[329653671,1718543487078,-1143.75,0.00025203,3]
[329653672,1718543487097,-2358.06,0.00025203,3]
[329653673,1718543487117,-500.0,0.00025203,3]
[329653674,1718543487131,-500.0,0.00025205,3]
[329653675,1718543487161,-3953.08,0.00025205,3]
[329653676,1718543487173,-1627.71,0.00025205,3]
[329653677,1718543487188,-1076.22,0.00025205,3]
[329653678,1718543487201,-2749.41,0.00025205,3]
[329653679,1718543487213,-791.62,0.00025205,3]
[329653680,1718543487244,-439.6750524,0.00025205,3]
[329653681,1718543487261,-2698.23,0.00025205,3]
[329653682,1718543487274,-900.4,0.00025205,3]
[329653683,1718543487291,-500.0,0.00025205,3]
[329653684,1718543487319,-1139.85,0.00025205,3]
[329653685,1718543487335,-500.0,0.00025205,3]
[329653686,1718543487352,-1672.32,0.00025205,3]
[329653687,1718543487381,-569.27,0.00025205,3]
[329653688,1718543487394,-835.69,0.00025205,3]
[329653689,1718543487412,-1200.74,0.00025205,3]
[329653690,1718543487442,-666.2,0.00025205,3]
[329653691,1718543487457,-677.79,0.00025205,3]
[329653692,1718543487499,-737.27,0.00025205,3]
[329653693,1718543487517,-1661.59,0.00025205,3]
[329653694,1718543487535,-500.0,0.00025205,3]
[329653695,1718543487569,-1597.3,0.00025205,3]
[329653696,1718543487627,-1539.48,0.00025205,3]
[329653697,1718543487639,-1018.91,0.00025205,3]
[329653698,1718543487657,-1576.0,0.00025205,3]
[329653699,1718543487673,-500.0,0.00025205,3]
[329653700,1718543487684,-500.0,0.00025205,3]
[329653701,1718543487706,-1000.71,0.00025205,3]
[329653702,1718543487732,-965.1,0.00025205,3]
[329653703,1718543487745,-500.0,0.00025205,3]
[329653704,1718543487759,-1912.84,0.00025205,3]
[329653705,1718543487797,-811.0,0.00025205,3]
[329653706,1718543487835,-1707.1,0.00025205,3]
[329653707,1718543487872,-500.0,0.00025205,3]
[329653708,1718543487912,-607.65,0.00025205,3]
[329653709,1718543487937,-500.0,0.00025205,3]
[329653710,1718543487961,-500.0,0.00025205,3]
[329653711,1718543488003,-776.41,0.00025205,3]
[329653712,1718543488042,-757.14,0.00025205,3]
[329653713,1718543488066,-6644.03,0.00025205,3]
[329653714,1718543488086,-530.75,0.00025205,3]
[329653715,1718543488114,-500.0,0.00025205,3]
[329653716,1718543488139,-500.0,0.00025205,3]
[329653717,1718543488151,-500.0,0.00025205,3]
[329653718,1718543488180,-1000.0,0.00025205,2]
[329653719,1718543488206,-280.0,0.000253,2]
[329653720,1718543488220,-500.0,0.00025376,3]
[329653721,1718543488235,-594.24,0.00025376,3]
[329653722,1718543488257,-3131.91,0.00025376,3]
[329653723,1718543488270,-965.52,0.00025376,3]
[329653724,1718543488292,-586.35,0.00025376,3]
[329653725,1718543488331,-1551.76,0.00025376,3]
[329653726,1718543488347,-500.0,0.00025376,3]
[329653727,1718543488368,-573.44,0.00025376,3]
[329653728,1718543488400,-500.0,0.00025376,3]
[329653729,1718543488421,-500.0,0.00025376,3]
[329653730,1718543488443,-1506.09,0.00025376,3]
[329653731,1718543488473,-864.61,0.00025376,3]
[329653732,1718543488491,-606.9,0.00025376,3]
[329653733,1718543488536,-500.0,0.00025376,3]
[329653734,1718543488577,-500.0,0.00025376,3]
[329653735,1718543488589,-500.0,0.00025376,3]
[329653736,1718543488602,-516.73,0.00025376,3]
[329653737,1718543488629,-848.21,0.00025376,3]
[329653738,1718543488646,-544.71,0.00025376,3]
[329653739,1718543488678,-500.0,0.00025376,3]
[329653740,1718543488724,-2488.18,0.00025376,3]
[329653741,1718543488749,-1078.22,0.00025376,3]
[329653742,1718543488763,-571.93,0.00025377,3]
[329653743,1718543488775,-500.0,0.00025377,3]
[329653744,1718543488804,-500.0,0.00025377,3]
[329653745,1718543488838,-500.0,0.00025377,3]
[329653746,1718543488855,-500.0,0.00025377,3]
[329653747,1718543488872,-636.74,0.00025377,3]
[329653748,1718543488883,-500.0,0.00025377,3]
[329653749,1718543488894,-500.0,0.00025377,3]
[329653750,1718543488912,-500.0,0.00025377,3]
[329653751,1718543488926,-561.64,0.00025377,3]
[329653752,1718543488955,-801.16,0.00025377,3]
[329653753,1718543488967,-1647.47,0.00025377,3]
[329653754,1718543488987,-500.0,0.00025377,3]
[329653755,1718543489015,-1007.94,0.00025377,3]
[329653756,1718543489027,-671.38,0.00025377,3]
[329653757,1718543489052,-765.87,0.00025377,3]
[329653758,1718543489073,-1108.45,0.00025377,3]
[329653759,1718543489085,-384.14782985,0.00025377,3]
[329653760,1718543489097,-500.0,0.00025377,3]
[329653761,1718543489110,-1206.94,0.00025377,3]
[329653762,1718543489127,-576.89,0.00025377,3]
[329653763,1718543489152,-1759.47,0.00025377,3]
[329653764,1718543489172,-5000.0,0.00025463,7]
[329653765,1718543489186,-500.0,0.00025476,3]
[329653766,1718543489197,-500.0,0.00025476,3]
[329653767,1718543489211,-500.0,0.00025476,3]
[329653768,1718543489225,-500.0,0.00025476,3]
[329653769,1718543489236,-150.14,0.00025476,3]
[329653770,1718543489248,-500.0,0.00025476,3]
[329653771,1718543489260,-500.0,0.00025476,3]
[329653772,1718543489272,-500.0,0.00025476,3]
[329653773,1718543489283,-500.0,0.00025476,3]
[329653774,1718543489295,-3908.29,0.00025476,3]
[329653775,1718543489306,-500.0,0.00025476,3]
[329653776,1718543489319,-8007.85,0.00025476,3]
[329653777,1718543489333,-500.0,0.00025476,3]
[329653778,1718543489345,-500.0,0.00025476,3]
[329653779,1718543489359,-538.75,0.00025476,3]
[329653780,1718543489373,-1722.87,0.00025476,3]
[329653781,1718543489386,-1489.44,0.00025476,3]
[329653782,1718543489398,-649.48,0.00025476,3]
[329653783,1718543489428,-3520.91,0.00025476,3]
[329653784,1718543489439,-2428.49,0.00025476,3]
[329653785,1718543489451,-568.3,0.00025476,3]
[329653786,1718543489473,-1046.44,0.00025476,3]
[329653787,1718543489485,-629.85,0.00025476,3]
[329653788,1718543489495,-1143.75,0.00025477,3]
[329653789,1718543489511,-2358.06,0.00025477,3]
[329653790,1718543489540,-500.0,0.00025477,3]
[329653791,1718543489551,-500.0,0.00025479,3]
[329653792,1718543489570,-3953.08,0.00025479,3]
[329653793,1718543489588,-1627.71,0.00025479,3]
[329653794,1718543489599,-1076.22,0.00025479,3]
[329653795,1718543489617,-2749.41,0.00025479,3]
[329653796,1718543489635,-791.62,0.00025479,3]
[329653797,1718543489654,-2698.23,0.00025479,3]
[329653798,1718543489666,-900.4,0.00025479,3]
[329653799,1718543489679,-500.0,0.00025479,3]
[329653800,1718543489694,-1139.85,0.00025479,3]
[329653801,1718543489713,-500.0,0.00025479,3]
[329653802,1718543489725,-1672.32,0.00025479,3]
[329653803,1718543489739,-569.27,0.00025479,3]
[329653804,1718543489758,-835.69,0.00025479,3]
[329653805,1718543489777,-1200.74,0.00025479,3]
[329653806,1718543489794,-666.2,0.00025479,3]
[329653807,1718543489820,-677.79,0.00025479,3]
[329653808,1718543489832,-737.27,0.00025479,3]
[329653809,1718543489863,-1661.59,0.00025479,3]
[329653810,1718543489907,-500.0,0.00025479,3]
[329653811,1718543489919,-1597.3,0.00025479,3]
[329653812,1718543489948,-1539.48,0.00025479,3]
[329653813,1718543489961,-1018.91,0.00025479,3]
[329653814,1718543489972,-1576.0,0.00025479,3]
[329653815,1718543489985,-500.0,0.00025479,3]
[329653816,1718543489997,-500.0,0.00025479,3]
[329653817,1718543490010,-1000.71,0.00025479,3]
[329653818,1718543490021,-965.1,0.00025479,3]
[329653819,1718543490036,-500.0,0.00025479,3]
[329653820,1718543490047,-1912.84,0.00025479,3]
[329653821,1718543490078,-811.0,0.00025479,3]
[329653822,1718543490093,-1707.1,0.00025479,3]
[329653823,1718543490126,-500.0,0.00025479,3]
[329653824,1718543490138,-607.65,0.00025479,3]
[329653825,1718543490150,-500.0,0.00025479,3]
[329653826,1718543490166,-500.0,0.00025479,3]
[329653827,1718543490180,-776.41,0.00025479,3]
[329653828,1718543490209,-757.14,0.00025479,3]
[329653829,1718543490246,-6644.03,0.00025479,3]
[329653830,1718543490258,-530.75,0.00025479,3]
[329653831,1718543490276,-500.0,0.00025479,3]
[329653832,1718543490287,-500.0,0.00025479,3]
[329653833,1718543490322,-500.0,0.00025479,3]
[329653834,1718543490337,-2826.39,0.000255,2]
[329653835,1718543490368,-150.0,0.000255,4]
[329653836,1718543490424,-1000.0,0.0002565,2]
[329653837,1718543490457,-500.0,0.0002565,3]
[329653838,1718543490472,-594.24,0.0002565,3]
[329653839,1718543490502,-3131.91,0.0002565,3]
[329653840,1718543490517,-965.52,0.0002565,3]
[329653841,1718543490540,-586.35,0.0002565,3]
[329653842,1718543490553,-1551.76,0.0002565,3]
[329653843,1718543490572,-500.0,0.0002565,3]
[329653844,1718543490587,-573.44,0.0002565,3]
[329653845,1718543490622,-500.0,0.0002565,3]
[329653846,1718543490641,-500.0,0.0002565,3]
[329653847,1718543490654,-1506.09,0.0002565,3]
[329653848,1718543490667,-864.61,0.0002565,3]
[329653849,1718543490679,-606.9,0.0002565,3]
[329653850,1718543490709,-500.0,0.0002565,3]
[329653851,1718543490741,-500.0,0.0002565,3]
[329653852,1718543490764,-500.0,0.0002565,3]
[329653853,1718543490777,-516.73,0.0002565,3]
[329653854,1718543490789,-848.21,0.0002565,3]
[329653855,1718543490808,-544.71,0.0002565,3]
[329653856,1718543490828,-2488.18,0.0002565,3]
[329653857,1718543490856,-500.0,0.0002565,3]
[329653858,1718543490895,-1078.22,0.0002565,3]
[329653859,1718543490918,-571.93,0.00025651,3]
[329653860,1718543490940,-500.0,0.00025651,3]
[329653861,1718543490952,-500.0,0.00025651,3]
[329653862,1718543490980,-500.0,0.00025651,3]
[329653863,1718543490994,-500.0,0.00025651,3]
[329653864,1718543491008,-636.74,0.00025651,3]
[329653865,1718543491028,-500.0,0.00025651,3]
[329653866,1718543491046,-500.0,0.00025651,3]
[329653867,1718543491059,-500.0,0.00025651,3]
[329653868,1718543491072,-561.64,0.00025651,3]
[329653869,1718543491088,-801.16,0.00025651,3]
[329653870,1718543491100,-1647.47,0.00025651,3]
[329653871,1718543491120,-500.0,0.00025651,3]
[329653872,1718543491132,-1007.94,0.00025651,3]
[329653873,1718543491145,-671.38,0.00025651,3]
[329653874,1718543491166,-765.87,0.00025651,3]
[329653875,1718543491186,-1108.45,0.00025651,3]
[329653876,1718543491205,-500.0,0.00025651,3]
[329653877,1718543491224,-1206.94,0.00025651,3]
[329653878,1718543491238,-576.89,0.00025651,3]
[329653879,1718543491250,-1759.47,0.00025651,3]
[329653880,1718543491266,-152.0,0.00025696,6]
[329653881,1718543491291,-217.68378434,0.0002575,3]
[329653882,1718543491302,-500.0,0.0002575,3]
[329653883,1718543491333,-500.0,0.0002575,3]
[329653884,1718543491345,-500.0,0.0002575,3]
[329653885,1718543491356,-150.14,0.0002575,3]
[329653886,1718543491369,-500.0,0.0002575,3]
[329653887,1718543491382,-500.0,0.0002575,3]
[329653888,1718543491409,-500.0,0.0002575,3]
[329653889,1718543491444,-500.0,0.0002575,3]
[329653890,1718543491465,-3908.29,0.0002575,3]
[329653891,1718543491483,-500.0,0.0002575,3]
[329653892,1718543491495,-8007.85,0.0002575,3]
[329653893,1718543491510,-500.0,0.0002575,3]
[329653894,1718543491522,-500.0,0.0002575,3]
[329653895,1718543491538,-538.75,0.0002575,3]
[329653896,1718543491561,-1722.87,0.0002575,3]
[329653897,1718543491573,-1489.44,0.0002575,3]
[329653898,1718543491608,-649.48,0.0002575,3]
[329653899,1718543491623,-3520.91,0.0002575,3]
[329653900,1718543491635,-2428.49,0.0002575,3]
[329653901,1718543491651,-568.3,0.0002575,3]
[329653902,1718543491678,-1046.44,0.0002575,3]
[329653903,1718543491692,-629.85,0.0002575,3]
[329653904,1718543491705,-1143.75,0.00025751,3]
[329653905,1718543491719,-2358.06,0.00025751,3]
[329653906,1718543491732,-500.0,0.00025751,3]
[329653907,1718543491752,-500.0,0.00025753,3]
[329653908,1718543491766,-3953.08,0.00025753,3]
[329653909,1718543491778,-1627.71,0.00025753,3]
[329653910,1718543491789,-1076.22,0.00025753,3]
[329653911,1718543491810,-2749.41,0.00025753,3]
[329653912,1718543491824,-791.62,0.00025753,3]
[329653913,1718543491840,-2698.23,0.00025753,3]
[329653914,1718543491854,-900.4,0.00025753,3]
[329653915,1718543491871,-500.0,0.00025753,3]
[329653916,1718543491884,-1139.85,0.00025753,3]
[329653917,1718543491900,-500.0,0.00025753,3]
[329653918,1718543491916,-1672.32,0.00025753,3]
[329653919,1718543491933,-569.27,0.00025753,3]
[329653920,1718543491953,-835.69,0.00025753,3]
[329653921,1718543491967,-1200.74,0.00025753,3]
[329653922,1718543491983,-666.2,0.00025753,3]
[329653923,1718543491998,-677.79,0.00025753,3]
[329653924,1718543492015,-737.27,0.00025753,3]
[329653925,1718543492026,-1661.59,0.00025753,3]
[329653926,1718543492040,-500.0,0.00025753,3]
[329653927,1718543492055,-1597.3,0.00025753,3]
[329653928,1718543492074,-1539.48,0.00025753,3]
[329653929,1718543492088,-1018.91,0.00025753,3]
[329653930,1718543492107,-1576.0,0.00025753,3]
[329653931,1718543492128,-500.0,0.00025753,3]
[329653932,1718543492145,-162.92589792,0.00025753,3]
[329653933,1718543492158,-1000.71,0.00025753,3]
[329653934,1718543492170,-965.1,0.00025753,3]
[329653935,1718543492187,-1912.84,0.00025753,3]
[329653936,1718543492212,-500.0,0.00025753,3]
[329653937,1718543492234,-811.0,0.00025753,3]
[329653938,1718543492249,-1707.1,0.00025753,3]
[329653939,1718543492276,-500.0,0.00025753,3]
[329653940,1718543492306,-607.65,0.00025753,3]
[329653941,1718543492333,-500.0,0.00025753,3]
[329653942,1718543492347,-500.0,0.00025753,3]
[329653943,1718543492360,-776.41,0.00025753,3]
[329653944,1718543492373,-757.14,0.00025753,3]
[329653945,1718543492386,-6644.03,0.00025753,3]
[329653946,1718543492401,-530.75,0.00025753,3]
[329653947,1718543492413,-500.0,0.00025753,3]
[329653948,1718543492426,-500.0,0.00025753,3]
[329653949,1718543492442,-500.0,0.00025753,3]
[329653950,1718543492456,-2019.78,0.000258,2]
[329653951,1718543492475,-229.74,0.0002589,2]
[329653952,1718543492515,-500.0,0.00025924,3]
[329653953,1718543492540,-594.24,0.00025924,3]
[329653954,1718543492580,-3131.91,0.00025924,3]
[329653955,1718543492592,-965.52,0.00025924,3]
[329653956,1718543492606,-586.35,0.00025924,3]
[329653957,1718543492624,-1551.76,0.00025924,3]
[329653958,1718543492644,-500.0,0.00025924,3]
[329653959,1718543492660,-573.44,0.00025924,3]
[329653960,1718543492673,-500.0,0.00025924,3]
[329653961,1718543492687,-329.8367541,0.00025924,3]
[329653962,1718543492713,-1506.09,0.00025924,3]
[329653963,1718543492733,-864.61,0.00025924,3]
[329653964,1718543492748,-606.9,0.00025924,3]
[329653965,1718543492760,-500.0,0.00025924,3]
[329653966,1718543492776,-500.0,0.00025924,3]
[329653967,1718543492791,-500.0,0.00025924,3]
[329653968,1718543492803,-516.73,0.00025924,3]
[329653969,1718543492836,-848.21,0.00025924,3]
[329653970,1718543492850,-544.71,0.00025924,3]
[329653971,1718543492865,-2488.18,0.00025924,3]
[329653972,1718543492893,-500.0,0.00025924,3]
[329653973,1718543492905,-1078.22,0.00025924,3]
[329653974,1718543492920,-571.93,0.00025925,3]
[329653975,1718543492931,-500.0,0.00025925,3]
[329653976,1718543492945,-500.0,0.00025925,3]
[329653977,1718543492956,-500.0,0.00025925,3]
[329653978,1718543492967,-500.0,0.00025925,3]
[329653979,1718543492979,-636.74,0.00025925,3]
[329653980,1718543492991,-500.0,0.00025925,3]
[329653981,1718543493004,-615.13521711,0.00025925,3]
[329653982,1718543493021,-500.0,0.00025925,3]
[329653983,1718543493032,-561.64,0.00025925,3]
[329653984,1718543493045,-801.16,0.00025925,3]
[329653985,1718543493056,-1647.47,0.00025925,3]
[329653986,1718543493069,-500.0,0.00025925,3]
[329653987,1718543493091,-1007.94,0.00025925,3]
[329653988,1718543493114,-671.38,0.00025925,3]
[329653989,1718543493135,-765.87,0.00025925,3]
[329653990,1718543493151,-1108.45,0.00025925,3]
[329653991,1718543493164,-500.0,0.00025925,3]
[329653992,1718543493177,-1206.94,0.00025925,3]
[329653993,1718543493189,-576.89,0.00025925,3]
[329653994,1718543493212,-1759.47,0.00025925,3]
[329653995,1718543493226,-136289.00376191,0.00025989,7]
[329653996,1718543493238,-44258.15629131,0.00025989,7]
[329653997,1718543493255,-23534.25625495,0.00026,5]
[329653998,1718543493285,-4053.1203069,0.00026,2]
[329653999,1718543493299,-277.84198281,0.00026,2]
[329654000,1718543493311,-1000.0,0.00026,2]
[329654001,1718543493323,-284.77154532,0.00026,2]
[329654002,1718543493335,-2278.01574493,0.00026,7]
[329654003,1718543493348,-30000.0,0.00026,3]
[329654004,1718543493374,-500.0,0.00026,2]
[329654005,1718543493395,-500.0,0.00026,2]
[329654006,1718543493409,-500.0,0.00026,2]
[329654007,1718543493432,-500.0,0.00026,2]
[329654008,1718543493444,-500.0,0.00026,2]
[329654009,1718543493464,-500.0,0.00026,2]
[329654010,1718543493500,-500.0,0.00026,2]
[329654011,1718543493511,-500.0,0.00026,2]
[329654012,1718543493523,-500.0,0.00026,2]
[329654013,1718543493535,-500.0,0.00026,2]
[329654014,1718543493548,-500.0,0.00026,2]
[329654015,1718543493568,-500.0,0.00026,2]
[329654016,1718543493585,-500.0,0.00026,2]
[329654017,1718543493595,-500.0,0.00026,2]
[329654018,1718543493606,-500.0,0.00026,2]
[329654019,1718543493643,-500.0,0.00026,2]
[329654020,1718543493656,-500.0,0.00026,2]
[329654021,1718543493669,-500.0,0.00026,2]
[329654022,1718543493692,-500.0,0.00026,2]
[329654023,1718543493705,-500.0,0.00026,2]
[329654024,1718543493731,-500.0,0.00026,2]
[329654025,1718543493744,-500.0,0.00026,2]
[329654026,1718543493756,-500.0,0.00026,2]
[329654027,1718543493767,-500.0,0.00026,2]
[329654028,1718543493778,-500.0,0.00026,2]
[329654029,1718543493790,-500.0,0.00026,2]
[329654030,1718543493802,-500.0,0.00026,2]
[329654031,1718543494002,-500.0,0.00026,2]
[329654032,1718543494013,-500.0,0.00026,2]
[329654033,1718543494027,-500.0,0.00026,2]
[329654034,1718543494044,-500.0,0.00026,2]
[329654035,1718543494072,-500.0,0.00026,2]
[329654036,1718543494083,-500.0,0.00026,2]
[329654037,1718543494113,-500.0,0.00026,2]
[329654038,1718543494135,-500.0,0.00026,2]
[329654039,1718543494171,-500.0,0.00026,2]
[329654040,1718543494206,-500.0,0.00026,2]
[329654041,1718543494236,-500.0,0.00026,2]
[329654042,1718543494248,-500.0,0.00026,2]
[329654043,1718543494273,-500.0,0.00026,2]
[329654044,1718543494286,-500.0,0.00026,2]
[329654045,1718543494300,-500.0,0.00026,2]
[329654046,1718543494330,-500.0,0.00026,2]
[329654047,1718543494364,-500.0,0.00026,2]
[329654048,1718543494405,-500.0,0.00026,2]
[329654049,1718543494417,-500.0,0.00026,2]
[329654050,1718543494428,-500.0,0.00026,2]
[329654051,1718543494440,-500.0,0.00026,2]
[329654052,1718543494451,-500.0,0.00026,2]
[329654053,1718543494462,-500.0,0.00026,2]
[329654054,1718543494474,-500.0,0.00026,2]
[329654055,1718543494490,-500.0,0.00026,2]
[329654056,1718543494516,-500.0,0.00026,2]
[329654057,1718543494552,-500.0,0.00026,2]
[329654058,1718543494577,-500.0,0.00026,2]
[329654059,1718543494600,-500.0,0.00026,2]
[329654060,1718543494614,-500.0,0.00026,2]
[329654061,1718543494649,-500.0,0.00026,2]
[329654062,1718543494660,-500.0,0.00026,2]
[329654063,1718543494672,-500.0,0.00026,2]
[329654064,1718543494691,-500.0,0.00026,2]
[329654065,1718543494702,-500.0,0.00026,2]
[329654066,1718543494713,-500.0,0.00026,2]
[329654067,1718543494724,-500.0,0.00026,2]
[329654068,1718543494735,-500.0,0.00026,2]
[329654069,1718543494746,-500.0,0.00026,2]
[329654070,1718543494760,-500.0,0.00026,2]
[329654071,1718543494770,-500.0,0.00026,2]
[329654072,1718543494788,-500.0,0.00026,2]
[329654073,1718543494798,-500.0,0.00026,2]
[329654074,1718543494823,-500.0,0.00026,2]
[329654075,1718543494836,-500.0,0.00026,2]
[329654076,1718543494847,-500.0,0.00026,2]
[329654077,1718543494858,-500.0,0.00026,2]
[329654078,1718543494876,-500.0,0.00026,2]
[329654079,1718543494887,-500.0,0.00026,2]
[329654080,1718543494898,-500.0,0.00026,2]
[329654081,1718543494910,-500.0,0.00026,2]
[329654082,1718543494927,-500.0,0.00026,2]
[329654083,1718543494938,-500.0,0.00026,2]
[329654084,1718543494949,-500.0,0.00026,2]
[329654085,1718543494960,-500.0,0.00026,2]
[329654086,1718543494981,-500.0,0.00026,2]
[329654087,1718543494991,-500.0,0.00026,2]
[329654088,1718543495028,-500.0,0.00026,2]
[329654089,1718543495056,-500.0,0.00026,2]
[329654090,1718543495072,-500.0,0.00026,2]
[329654091,1718543495083,-500.0,0.00026,2]
[329654092,1718543495094,-500.0,0.00026,2]
[329654093,1718543495106,-500.0,0.00026,2]
[329654094,1718543495121,-500.0,0.00026,2]
[329654095,1718543495134,-500.0,0.00026,2]
[329654096,1718543495153,-500.0,0.00026,2]
[329654097,1718543495180,-500.0,0.00026,2]
[329654098,1718543495196,-500.0,0.00026,2]
[329654099,1718543495210,-500.0,0.00026,2]
[329654100,1718543495222,-500.0,0.00026,2]
[329654101,1718543495233,-500.0,0.00026,2]
[329654102,1718543495244,-500.0,0.00026,2]
[329654103,1718543495256,-500.0,0.00026,2]
[329654104,1718543495266,-500.0,0.00026,2]
[329654105,1718543495277,-500.0,0.00026,2]
[329654106,1718543495288,-263.58,0.00026,2]
[329654107,1718543495300,-500.0,0.00026,2]
[329654108,1718543495318,-500.0,0.00026,2]
[329654109,1718543495329,-500.0,0.00026,2]
[329654110,1718543495343,-500.0,0.00026,2]
[329654111,1718543495359,-500.0,0.00026,2]
[329654112,1718543495375,-500.0,0.00026,2]
[329654113,1718543495388,-500.0,0.00026,2]
[329654114,1718543495405,-500.0,0.00026,2]
[329654115,1718543495436,-500.0,0.00026,2]
[329654116,1718543495456,-500.0,0.00026,2]
[329654117,1718543495468,-500.0,0.00026,2]
[329654118,1718543495484,-500.0,0.00026,2]
[329654119,1718543495506,-500.0,0.00026,2]
[329654120,1718543495521,-500.0,0.00026,2]
[329654121,1718543495538,-500.0,0.00026,2]
[329654122,1718543495550,-500.0,0.00026,2]
[329654123,1718543495584,-500.0,0.00026,2]
[329654124,1718543495597,-500.0,0.00026,2]
[329654125,1718543495619,-500.0,0.00026,2]
[329654126,1718543495631,-500.0,0.00026,2]
[329654127,1718543495653,-500.0,0.00026,2]
[329654128,1718543495664,-500.0,0.00026,2]
[329654129,1718543495678,-500.0,0.00026,2]
[329654130,1718543495690,-500.0,0.00026,2]
[329654131,1718543495707,-500.0,0.00026,2]
[329654132,1718543495739,-278.59,0.00026,2]
[329654133,1718543495755,-3600.0,0.00026,27]
[329654134,1718543495768,-150.0,0.00026,4]
[329654135,1718543495781,-500.0,0.00026024,3]
[329654136,1718543495793,-500.0,0.00026024,3]
[329654137,1718543495805,-500.0,0.00026024,3]
[329654138,1718543495826,-150.14,0.00026024,3]
[329654139,1718543495846,-500.0,0.00026024,3]
[329654140,1718543495858,-500.0,0.00026024,3]
[329654141,1718543495877,-500.0,0.00026024,3]
[329654142,1718543495888,-500.0,0.00026024,3]
[329654143,1718543495908,-3908.29,0.00026024,3]
[329654144,1718543495925,-577.64816766,0.00026024,3]
[329654145,1718543495938,-8007.85,0.00026024,3]
[329654146,1718543495954,-295.00549075,0.00026024,3]
[329654147,1718543495969,-500.0,0.00026024,3]
[329654148,1718543495986,-538.75,0.00026024,3]
[329654149,1718543496009,-1722.87,0.00026024,3]
[329654150,1718543496040,-1489.44,0.00026024,3]
[329654151,1718543496059,-649.48,0.00026024,3]
[329654152,1718543496103,-3520.91,0.00026024,3]
[329654153,1718543496130,-2428.49,0.00026024,3]
[329654154,1718543496145,-568.3,0.00026024,3]
[329654155,1718543496184,-1046.44,0.00026024,3]
[329654156,1718543496206,-629.85,0.00026024,3]
[329654157,1718543496218,-1143.75,0.00026025,3]
[329654158,1718543496239,-2358.06,0.00026025,3]
[329654159,1718543496259,-500.0,0.00026025,3]
[329654160,1718543496283,-1000.0,0.00026026,2]
[329654161,1718543496315,-500.0,0.00026027,3]
[329654162,1718543496334,-3953.08,0.00026027,3]
[329654163,1718543496359,-1627.71,0.00026027,3]